bitfinex/quotes_ETHUSD_20250220
["timestamp","ask_amount","ask_price","bid_price","bid_amount"]
[1740078667087,0.8042,2742.1,2741.8,4.19717]
[1740078667276,5.36,2742.3,2742.0,3.42114038]
[1740078667442,5.36,2742.3,2742.1,3.64684]
[1740078667643,5.36,2742.3,2742.2,3.6467]
[1740078667840,5.36,2742.3,2742.2,4.9996]
[1740078668035,0.0075,2743.1,2742.2,4.9996]
[1740078668036,9.0057,2743.0,2742.4,0.55]
[1740078668278,1.341908,2742.9,2742.5,7.06742038]
[1740078668457,1.341908,2742.9,2742.4,0.55]
[1740078668458,3.64604,2742.8,2742.4,0.55]
[1740078669179,4.987698,2742.9,2742.4,4.19636]
[1740078669476,8.633548,2742.9,2742.4,4.19636]
[1740078669643,4.987698,2742.9,2742.4,4.19636]
[1740078670046,1.341908,2742.9,2742.5,3.64624]
[1740078670271,5.36,2743.0,2742.6,3.64617]
[1740078670468,5.36,2743.0,2742.6,4.45809]
[1740078671482,9.00551,2743.1,2742.6,4.45809]
[1740078671948,5.36,2743.1,2742.8,7.06695038]
[1740078672142,5.36,2743.4,2742.9,0.55]
[1740078672347,5.36,2743.4,2743.1,4.23314038]
[1740078672576,6.1519,2743.7,2743.2,4.1953]
[1740078672776,6.1519,2743.7,2743.2,7.84059]
[1740078672978,6.1519,2743.7,2743.2,0.55]
[1740078673185,0.8288,2744.0,2743.6,3.64483]
[1740078673394,4.4732,2744.0,2743.4,7.61616038]
[1740078673602,4.4732,2744.0,2743.5,3.64492]
[1740078673967,4.4732,2744.0,2743.4,7.61617038]
[1740078674186,3.64447,2743.9,2743.4,7.61617038]
[1740078674392,3.64459,2743.8,2743.2,3.64524]
[1740078674714,3.64474,2743.7,2743.1,0.812]
[1740078674863,4.47398,2743.4,2742.8,3.64581]
[1740078675063,3.64548,2743.2,2742.7,0.267]
[1740078675263,9.00548,2743.2,2742.7,0.267]
[1740078675691,9.00548,2743.2,2742.7,3.91301]
[1740078676196,9.00548,2743.2,2742.7,0.267]
[1740078676392,9.00548,2743.2,2742.7,3.91302]
[1740078676710,5.36,2743.2,2743.0,4.19555]
[1740078677269,5.36,2743.2,2743.1,3.64551]
[1740078677466,5.36,2743.2,2743.1,4.47331]
[1740078677678,5.36,2743.2,2743.1,5.02331]
[1740078678479,5.36,2743.2,2743.1,8.44445038]
[1740078678879,5.36,2743.2,2743.1,12.65345842]
[1740078680405,4.4699,2743.9,2743.4,3.64509]
[1740078680773,5.36,2744.0,2743.4,3.42114038]
[1740078680986,5.36,2744.0,2743.7,7.89055038]
[1740078681877,5.36,2744.0,2743.6,3.64482]
[1740078682104,5.36,2744.0,2743.7,3.64462]
[1740078682495,5.36,2744.0,2743.9,3.64444]
[1740078684091,5.36,2744.0,2743.8,0.55]
[1740078684291,5.36,2744.0,2743.8,4.19457]
[1740078686293,9.00398,2744.3,2743.8,4.19457]
[1740078686711,9.00398,2744.3,2743.9,3.6444]
[1740078686712,5.36,2744.3,2743.9,3.6444]
[1740078686891,9.00397,2744.3,2743.9,1.21265344]
[1740078687107,9.00397,2744.3,2743.8,0.55]
[1740078687408,9.00397,2744.3,2743.9,3.64441]
[1740078687409,9.00391,2744.3,2743.9,3.64441]
[1740078688207,9.00391,2744.3,2743.8,4.19451]
[1740078688580,5.36,2744.3,2743.9,3.64437]
[1740078689318,9.00394,2744.3,2743.9,3.64437]
[1740078689621,9.00394,2744.3,2743.9,4.85703244]
[1740078689921,5.36,2744.3,2743.9,4.85703244]
[1740078690515,9.00393,2744.3,2743.9,4.85703244]
[1740078691311,12.64793,2744.3,2743.9,1.21266244]
[1740078691515,9.00393,2744.3,2743.9,1.21266244]
[1740078691693,9.00393,2744.3,2743.9,4.85710244]
[1740078691893,5.36,2744.3,2743.9,4.85710244]
[1740078692094,9.00393,2744.3,2743.9,4.85704244]
[1740078692420,9.00393,2744.3,2743.9,1.21266244]
[1740078693516,9.00393,2744.3,2743.8,4.19454]
[1740078694310,3.64413,2744.2,2743.8,0.55]
[1740078695119,9.00393,2744.3,2743.7,7.06575038]
[1740078695434,3.64437,2744.0,2743.5,3.6449]
[1740078695725,3.64437,2744.0,2743.6,0.55]
[1740078696225,3.64437,2744.0,2743.6,4.19482]
[1740078696396,3.64428,2744.1,2743.6,4.60723537]
[1740078696792,3.64427,2744.1,2743.6,4.60723537]
[1740078696992,3.64438,2744.0,2743.6,0.55]
[1740078697428,3.64443,2744.0,2743.5,3.64496]
[1740078697828,3.64443,2744.0,2743.5,3.64491]
[1740078698329,3.64443,2744.0,2743.5,7.28982]
[1740078698534,3.6442,2744.1,2743.6,3.64483]
[1740078698841,3.64434,2744.0,2743.6,3.64483]
[1740078699502,3.64452,2743.9,2743.4,4.19504]
[1740078699697,0.7997,2743.8,2743.4,0.55]
[1740078700098,0.7997,2743.8,2743.4,4.19509]
[1740078700534,0.7997,2743.8,2743.5,3.64497]
[1740078700958,0.7997,2743.8,2743.2,7.06650038]
[1740078701161,7.29009,2743.5,2743.1,1.20900804]
[1740078701299,0.7997,2743.4,2742.9,12.33690038]
[1740078701504,0.7997,2743.4,2742.9,5.09548342]
[1740078701721,4.44482,2743.4,2742.9,7.06690038]
[1740078701919,3.64525,2743.3,2742.9,7.06690038]
[1740078702149,9.00525,2743.3,2742.9,7.06690038]
[1740078703621,9.00525,2743.3,2742.9,3.42114038]
[1740078703819,9.00525,2743.3,2742.6,0.815]
[1740078703820,9.00525,2743.3,2742.6,3.97114038]
[1740078704145,3.64578,2742.9,2742.5,3.64617]
[1740078704352,4.41024,2743.0,2742.6,0.55]
[1740078705872,0.7646,2743.0,2742.7,3.64603]
[1740078707552,3.64546,2743.2,2742.7,3.64603]
[1740078707718,7.29091,2743.2,2742.7,3.64603]
[1740078708050,3.64552,2743.1,2742.7,3.64603]
[1740078708449,3.64552,2743.1,2742.6,3.97114038]
[1740078708749,3.64552,2743.1,2742.6,5.39748942]
[1740078709146,3.64545,2743.2,2742.6,9.04364942]
[1740078709351,6.1713,2743.3,2742.9,3.42114038]
[1740078709935,9.81663,2743.3,2742.9,3.42114038]
[1740078710351,9.81663,2743.3,2742.9,0.55]
[1740078711641,9.81663,2743.3,2742.8,7.29162]
[1740078711846,9.81663,2743.3,2742.8,4.93844094]
[1740078712056,9.81663,2743.3,2742.8,8.58427094]
[1740078712654,9.81663,2743.3,2742.9,3.64575]
[1740078713932,9.81663,2743.3,2742.8,4.93848094]
[1740078714568,9.81663,2743.3,2742.8,4.93847094]
[1740078714773,9.81663,2743.3,2742.8,8.58431094]
[1740078714969,9.81663,2743.3,2742.8,4.93847094]
[1740078715852,9.81663,2743.3,2742.8,4.93846094]
[1740078716466,9.81663,2743.3,2742.8,8.58430094]
[1740078716958,9.81663,2743.3,2742.8,8.58431094]
[1740078717178,9.81663,2743.3,2742.8,4.93846094]
[1740078717540,9.81663,2743.3,2742.9,3.64574]
[1740078718573,9.81663,2743.3,2742.9,4.58294009]
[1740078718743,9.81663,2743.3,2742.9,0.93717009]
[1740078720277,9.81663,2743.3,2742.9,4.58293009]
[1740078720655,9.81663,2743.3,2742.9,0.93717009]
[1740078723053,3.64539,2743.2,2742.9,0.93717009]
[1740078723455,6.1713,2743.3,2743.0,3.6456]
[1740078724081,6.1713,2743.3,2742.9,0.93717009]
[1740078724379,9.81655,2743.3,2742.9,3.64575]
[1740078724576,9.81655,2743.3,2742.7,4.4333]
[1740078724577,9.81655,2743.3,2742.7,0.7873]
[1740078724882,3.64596,2742.8,2742.4,6.42114038]
[1740078725083,3.64596,2742.8,2742.4,6.64638]
[1740078725459,0.7898,2742.9,2742.4,6.64638]
[1740078725656,4.43558,2742.9,2742.4,7.756494]
[1740078727961,4.43558,2742.9,2742.4,4.756494]
[1740078729380,0.7898,2742.9,2742.4,4.53125438]
[1740078729721,0.7898,2742.9,2742.5,3.6463]
[1740078730249,5.36,2743.3,2742.8,3.6459]
[1740078730454,0.753,2743.2,2742.9,3.64564]
[1740078730683,0.753,2743.2,2743.0,3.42114038]
[1740078730855,0.753,2743.2,2742.7,4.20574038]
[1740078731056,4.39845,2743.2,2742.7,7.54268442]
[1740078731252,4.39845,2743.2,2742.7,3.89671442]
[1740078731484,0.753,2743.2,2742.8,3.64589]
[1740078731789,0.753,2743.2,2742.8,3.64584]
[1740078733952,4.39845,2743.2,2742.7,3.89671442]
[1740078734155,4.39845,2743.2,2742.6,3.64606]
[1740078734488,3.64551,2743.1,2742.6,3.64606]
[1740078735594,3.64551,2743.1,2742.4,7.06748038]
[1740078735595,3.64574,2743.0,2742.5,3.64621]
[1740078736277,3.64593,2742.8,2742.3,3.64647]
[1740078736478,0.7709,2742.7,2742.3,3.64647]
[1740078737669,3.64624,2742.6,2742.1,7.06791038]
[1740078737993,3.64638,2742.5,2742.0,3.64685]
[1740078738208,0.8282,2742.4,2741.8,7.06830038]
[1740078738384,4.4747,2742.4,2741.9,3.6471]
[1740078739002,3.64657,2742.3,2741.8,7.06829038]
[1740078740192,4.4747,2742.4,2741.8,7.06829038]
[1740078740374,8.12124,2742.4,2741.9,3.6471]
[1740078740574,3.64657,2742.3,2741.9,3.6471]
[1740078740773,4.4747,2742.4,2741.9,3.6471]
[1740078740961,0.8282,2742.4,2742.1,7.06788038]
[1740078741363,4.40833,2742.8,2742.3,3.64657]
[1740078741614,0.7624,2742.8,2742.4,7.06755038]
[1740078742215,0.7624,2742.8,2742.4,3.42114038]
[1740078742364,0.7624,2742.8,2742.6,3.64605]
[1740078742559,5.36,2742.9,2742.6,3.64605]
[1740078742772,0.7935,2743.1,2742.6,3.64605]
[1740078742991,0.7935,2743.1,2742.7,3.64593]
[1740078743303,0.7935,2743.1,2742.7,7.06707038]
[1740078745195,0.7935,2743.1,2742.6,3.64605]
[1740078745401,3.64564,2743.0,2742.5,3.64629]
[1740078745599,3.64588,2742.9,2742.3,3.0]
[1740078745806,3.64613,2742.7,2742.1,7.78703656]
[1740078746104,0.443963,2742.7,2742.2,3.64669]
[1740078746302,4.43953,2742.8,2742.2,7.29332]
[1740078746483,4.43953,2742.8,2742.2,3.64663]
[1740078746689,4.43953,2742.8,2742.3,3.64656]
[1740078746997,0.7935,2742.8,2742.4,3.64636]
[1740078747367,0.7935,2742.8,2742.2,3.64663]
[1740078747699,4.43943,2742.8,2742.3,3.64654]
[1740078748683,9.79943,2742.8,2742.3,3.64654]
[1740078750120,9.79943,2742.8,2742.3,7.29303]
[1740078750619,6.1535,2742.8,2742.3,3.64649]
[1740078751410,6.1535,2742.8,2742.2,3.6467]
[1740078751610,6.1535,2742.8,2742.3,3.64649]
[1740078751818,9.79943,2742.8,2742.3,3.64649]
[1740078752519,6.1535,2742.8,2742.3,3.64649]
[1740078753228,9.79946,2742.8,2742.3,3.64649]
[1740078753525,6.1535,2742.8,2742.3,3.64649]
[1740078754189,6.1535,2742.8,2742.4,3.64642]
[1740078754696,6.1535,2742.8,2742.3,7.29294]
[1740078754907,6.1535,2742.8,2742.3,3.64647]
[1740078755112,9.7994,2742.8,2742.3,7.29297]
[1740078755312,6.1535,2742.8,2742.3,3.64647]
[1740078755514,6.1535,2742.8,2742.4,3.64643]
[1740078755814,6.1535,2742.8,2742.3,7.29296]
[1740078756329,9.79941,2742.8,2742.3,3.64647]
[1740078756906,0.979941,2742.7,2742.1,3.42114038]
[1740078757119,9.79941,2742.8,2742.3,3.64654]
[1740078757833,3.64605,2742.7,2742.2,3.64668]
[1740078758032,9.79946,2742.8,2742.2,3.64668]
[1740078758627,9.79946,2742.8,2742.2,3.64664]
[1740078759229,6.1535,2742.8,2742.4,3.42114038]
[1740078759529,0.7577,2743.5,2742.7,3.97114038]
[1740078759755,0.7577,2743.5,2743.4,3.64511]
[1740078760034,5.36,2743.6,2743.4,3.64511]
[1740078761202,5.36,2743.9,2743.8,3.64458]
[1740078761408,5.36,2743.9,2743.8,7.06572038]
[1740078762226,5.36,2743.9,2743.8,7.86301096]
[1740078762560,0.7711,2744.3,2744.0,3.64425]
[1740078762705,5.36,2744.4,2744.1,7.06528038]
[1740078762910,5.36,2744.4,2744.2,3.64404]
[1740078763341,5.36,2744.4,2744.1,7.06524038]
[1740078763623,5.36,2744.4,2744.2,3.64398]
[1740078763824,5.36,2744.4,2744.1,7.06524038]
[1740078764045,5.36,2744.4,2744.1,10.70934038]
[1740078764545,5.36,2744.4,2744.1,7.06524038]
[1740078764738,5.36,2744.4,2744.2,3.64403]
[1740078765317,0.7842,2744.6,2744.2,0.70651704]
[1740078765517,5.36,2744.7,2744.2,4.35046704]
[1740078765716,5.36,2744.7,2744.1,3.42114038]
[1740078765717,9.0034,2744.7,2744.1,7.06524038]
[1740078765924,9.0034,2744.7,2744.1,10.70934038]
[1740078766128,9.0034,2744.7,2744.1,7.06524038]
[1740078766129,5.36,2744.7,2744.1,7.06524038]
[1740078766329,5.36,2744.7,2744.3,3.6439]
[1740078767551,5.36,2744.7,2744.1,7.06524038]
[1740078767719,9.00341,2744.7,2744.1,7.06524038]
[1740078767920,9.00341,2744.7,2744.1,7.06523038]
[1740078768129,10.268064,2744.7,2744.1,3.42114038]
[1740078768425,10.268064,2744.7,2744.1,7.06529038]
[1740078768614,13.911574,2744.7,2744.1,7.06529038]
[1740078769017,3.64369,2744.5,2744.1,3.42114038]
[1740078770449,13.911534,2744.7,2744.1,7.06528038]
[1740078770649,3.64371,2744.5,2744.1,3.42114038]
[1740078770852,0.8047,2744.4,2744.1,3.42114038]
[1740078771146,0.8047,2744.4,2744.1,7.06525038]
[1740078771345,0.8047,2744.4,2744.1,3.42114038]
[1740078771550,3.64351,2744.6,2744.1,3.42114038]
[1740078771721,3.64351,2744.6,2744.1,7.06525038]
[1740078772047,5.36,2744.7,2744.5,3.64364]
[1740078772348,6.1647,2745.0,2744.5,0.55]
[1740078772528,4.44798,2745.3,2744.7,7.06444038]
[1740078772922,4.44798,2745.3,2744.8,3.64322]
[1740078773136,0.8053,2745.3,2744.8,3.64325]
[1740078773433,0.8053,2745.3,2745.0,7.06409038]
[1740078774547,3.64239,2745.5,2745.0,7.06411038]
[1740078774791,9.00239,2745.5,2745.0,7.06411038]
[1740078774916,9.00239,2745.5,2745.0,3.42114038]
[1740078775418,9.00239,2745.5,2744.8,0.70643904]
[1740078775745,3.64245,2745.4,2744.8,4.34967904]
[1740078775945,3.64262,2745.3,2744.9,1.14140994]
[1740078776329,3.64273,2745.2,2744.9,1.14140994]
[1740078776668,4.41686,2745.0,2744.7,3.42114038]
[1740078777052,3.64318,2744.9,2744.7,3.42114038]
[1740078778600,3.64325,2744.8,2744.7,3.42114038]
[1740078778741,3.64354,2744.6,2744.2,0.7836]
[1740078779071,3.64354,2744.6,2744.2,0.55]
[1740078779273,3.64354,2744.6,2744.2,0.89513164]
[1740078779475,4.42496,2744.4,2744.1,1.07094604]
[1740078779760,0.7811,2744.4,2743.9,4.22374038]
[1740078780054,5.36,2744.7,2743.9,4.22374038]
[1740078780055,3.6436,2744.6,2744.0,3.64424]
[1740078780225,9.78458,2744.7,2744.2,0.55]
[1740078780432,9.78457,2744.7,2744.2,3.97114038]
[1740078780628,9.78457,2744.7,2744.2,3.81825442]
[1740078780830,3.64386,2744.4,2743.9,11.51249038]
[1740078781058,3.64386,2744.4,2743.9,7.86811038]
[1740078781556,3.64354,2744.6,2744.1,3.64415]
[1740078781951,9.78452,2744.7,2744.2,3.64404]
[1740078782254,9.78451,2744.7,2744.2,4.14995938]
[1740078782447,9.78451,2744.7,2744.2,7.79391938]
[1740078782620,3.64353,2744.6,2744.2,4.14995938]
[1740078782825,9.78451,2744.7,2744.2,4.14995938]
[1740078782826,5.36,2744.7,2744.3,3.64378]
[1740078783525,9.00339,2744.7,2744.3,3.64378]
[1740078783727,5.36,2744.7,2744.3,4.42319394]
[1740078784236,12.64641,2744.9,2744.3,4.42319394]
[1740078784432,5.36,2744.9,2744.3,0.77937394]
[1740078784631,9.00316,2744.9,2744.4,3.64367]
[1740078784942,5.36,2744.9,2744.5,3.42114038]
[1740078785155,5.36,2744.9,2744.6,3.64344]
[1740078785360,3.64272,2745.2,2744.7,3.64331]
[1740078785529,4.42297,2745.3,2744.8,3.64316]
[1740078785861,4.42297,2745.3,2744.8,4.447319]
[1740078786056,3.64273,2745.2,2744.8,0.804159]
[1740078786258,7.28555,2745.2,2744.8,0.804159]
[1740078786626,3.64273,2745.2,2744.8,0.804159]
[1740078786826,3.64287,2745.1,2744.8,0.804159]
[1740078787029,3.64328,2744.8,2744.3,0.8016]
[1740078787342,4.41525,2744.8,2744.3,4.44547]
[1740078787533,3.64345,2744.7,2744.2,7.33018038]
[1740078787927,3.64358,2744.6,2744.2,0.265]
[1740078788328,3.64365,2744.5,2744.2,0.265]
[1740078788761,3.64381,2744.4,2744.2,0.265]
[1740078788984,3.64391,2744.3,2744.2,0.265]
[1740078789166,4.39621,2744.3,2744.2,0.265]
[1740078789882,4.39621,2744.3,2743.9,3.42114038]
[1740078790064,0.7523,2744.3,2743.9,4.28390598]
[1740078790230,4.47609,2744.4,2743.9,4.28390598]
[1740078790425,0.8323,2744.7,2744.2,3.64392]
[1740078790638,4.4758,2744.7,2744.2,3.42114038]
[1740078790930,3.64367,2744.5,2744.2,3.42114038]
[1740078791865,3.64367,2744.5,2744.0,3.64429]
[1740078793758,3.64353,2744.6,2744.1,3.64416]
[1740078794943,3.64353,2744.6,2744.1,3.64409]
[1740078795138,3.64353,2744.6,2744.1,7.2882]
[1740078795339,3.64353,2744.6,2744.1,3.64409]
[1740078796638,4.47575,2744.7,2744.1,3.64409]
[1740078796835,3.64371,2744.5,2743.9,7.92828598]
[1740078797095,3.64371,2744.5,2744.0,3.64428]
[1740078797431,3.64351,2744.6,2743.9,7.92822598]
[1740078797589,3.64366,2744.5,2744.0,3.64419]
[1740078797738,3.64351,2744.6,2744.2,3.64404]
[1740078798252,5.459265,2744.7,2744.2,3.64404]
[1740078798784,3.64351,2744.6,2744.0,3.64431]
[1740078798973,3.64351,2744.6,2744.1,3.64408]
[1740078799481,5.36,2744.8,2744.2,4.20904038]
[1740078799669,5.36,2744.8,2744.3,3.64385]
[1740078800071,5.36,2744.8,2744.4,3.6437]
[1740078800276,9.00327,2744.8,2744.3,3.64391]
[1740078800470,0.7586,2744.7,2744.3,3.64384]
[1740078800677,4.402,2744.7,2744.2,7.06517038]
[1740078801157,0.7586,2744.7,2744.3,3.6439]
[1740078801357,0.7586,2744.7,2744.3,7.28775]
[1740078801571,5.36,2744.8,2744.4,3.64371]
[1740078802698,9.00331,2744.8,2744.3,4.55319946]
[1740078803990,3.64354,2744.6,2744.0,4.43213]
[1740078804182,3.64354,2744.6,2744.2,3.64403]
[1740078804688,3.6434,2744.7,2744.2,3.64392]
[1740078805261,7.28689,2744.7,2744.2,3.64392]
[1740078805595,3.64354,2744.6,2744.2,3.64392]
[1740078806596,0.7751,2744.4,2744.0,3.64426]
[1740078807362,0.7751,2744.4,2744.1,3.64416]
[1740078807689,0.7751,2744.4,2744.0,3.6443]
[1740078809584,3.64348,2744.7,2744.0,3.6443]
[1740078809585,3.64352,2744.6,2744.0,3.6443]
[1740078809789,0.802,2744.7,2744.2,3.64403]
[1740078810097,0.802,2744.7,2744.3,3.64385]
[1740078811400,4.4454,2744.7,2744.3,3.64385]
[1740078811893,4.4454,2744.7,2744.1,3.6441]
[1740078811894,3.64365,2744.5,2744.1,3.6441]
[1740078812592,3.64365,2744.5,2744.0,3.64429]
[1740078812800,4.40117,2744.4,2743.9,7.06555038]
[1740078813366,3.64396,2744.3,2743.8,3.0]
[1740078813580,3.64396,2744.3,2743.9,3.64443]
[1740078814201,3.64396,2744.3,2743.8,3.0]
[1740078814497,0.7573,2744.4,2743.6,4.47869843]
[1740078814697,3.64393,2744.3,2743.9,3.64437]
[1740078814904,6.1173,2744.4,2743.8,3.6445]
[1740078814905,9.76109,2744.4,2743.8,3.6445]
[1740078815089,9.76109,2744.4,2743.9,3.64431]
[1740078815569,9.76109,2744.4,2744.0,3.64428]
[1740078816513,6.1173,2744.4,2744.0,3.64428]
[1740078816805,6.1173,2744.4,2744.0,4.373155]
[1740078817009,6.1173,2744.4,2744.2,3.64404]
[1740078817310,6.1173,2744.4,2744.1,3.64418]
[1740078818377,6.1173,2744.4,2744.0,4.373155]
[1740078818576,6.1173,2744.4,2744.0,8.017395]
[1740078818808,6.1173,2744.4,2744.0,3.64424]
[1740078819078,9.76117,2744.4,2743.9,7.06548038]
[1740078819290,3.64402,2744.3,2743.9,3.64438]
[1740078820508,9.76108,2744.4,2743.9,3.64438]
[1740078820909,3.64392,2744.3,2743.9,3.64438]
[1740078822614,3.64405,2744.2,2743.8,3.64447]
[1740078822785,3.64392,2744.3,2743.8,3.64447]
[1740078822786,3.64392,2744.3,2743.8,3.64445]
[1740078823087,3.64392,2744.3,2743.9,3.64441]
[1740078823920,6.1173,2744.4,2743.8,4.46911101]
[1740078824120,9.76116,2744.4,2743.9,3.64439]
[1740078825824,9.76116,2744.4,2743.9,3.64436]
[1740078826198,9.76116,2744.4,2743.8,4.46911101]
[1740078826400,9.76108,2744.4,2744.0,3.64429]
[1740078829493,9.00378,2744.4,2744.0,3.64429]
[1740078829698,5.36,2744.4,2744.1,3.64405]
[1740078830003,5.36,2744.4,2744.0,3.64429]
[1740078832422,5.36,2744.4,2744.3,3.64391]
[1740078833218,5.36,2744.4,2744.1,3.64411]
[1740078833411,5.36,2744.4,2744.0,3.64421]
[1740078833615,5.36,2744.4,2744.2,3.64403]
[1740078833838,5.36,2744.4,2744.1,3.64418]
[1740078834862,3.64365,2744.5,2744.0,3.6443]
[1740078835011,3.64365,2744.5,2744.0,7.28854]
[1740078835216,6.1742,2744.6,2744.1,3.64408]
[1740078835749,9.81772,2744.6,2744.2,3.64404]
[1740078835937,9.81772,2744.6,2744.0,4.95861895]
[1740078836243,9.81772,2744.6,2744.1,3.64415]
[1740078837248,13.46131,2744.6,2744.1,3.64415]
[1740078837426,9.81772,2744.6,2744.1,3.64415]
[1740078837626,13.46131,2744.6,2744.1,4.92897574]
[1740078837826,9.81772,2744.6,2744.1,4.92897574]
[1740078838215,9.81772,2744.6,2744.2,3.64402]
[1740078838552,13.46132,2744.6,2744.1,4.92898574]
[1740078838916,9.81772,2744.6,2744.1,4.92898574]
[1740078839116,3.64365,2744.5,2744.1,4.92898574]
[1740078840640,9.81778,2744.6,2744.1,4.92898574]
[1740078841257,9.81778,2744.6,2744.1,8.57310574]
[1740078841444,6.1742,2744.6,2744.3,3.64385]
[1740078841749,5.36,2744.6,2744.4,3.64372]
[1740078842251,5.36,2744.6,2744.5,3.64365]
[1740078842419,5.36,2744.6,2744.5,7.06479038]
[1740078843316,0.7877,2745.0,2744.5,7.06475038]
[1740078843317,6.1477,2745.0,2744.5,7.06475038]
[1740078843531,5.36,2745.0,2744.7,3.64331]
[1740078844933,5.36,2745.0,2744.6,1.51657504]
[1740078845149,5.36,2745.0,2744.7,3.64336]
[1740078845320,5.36,2745.0,2744.7,4.50146754]
[1740078845823,5.36,2745.0,2744.7,8.14477754]
[1740078846023,5.36,2745.0,2744.7,4.50141754]
[1740078846254,5.36,2745.0,2744.7,8.14472754]
[1740078846555,5.36,2745.0,2744.7,8.14470754]
[1740078846753,6.1625,2745.2,2744.7,4.50139754]
[1740078846945,9.80529,2745.2,2744.7,8.14469754]
[1740078847347,9.80529,2745.2,2744.8,0.89547975]
[1740078849257,6.1625,2745.2,2744.8,4.31662013]
[1740078849560,5.36,2745.2,2745.0,3.64289]
[1740078850259,5.36,2745.2,2745.1,3.64285]
[1740078850439,5.36,2745.6,2745.2,0.8119]
[1740078850634,9.00225,2745.6,2745.1,7.06393038]
[1740078850839,9.00225,2745.6,2745.2,3.64271]
[1740078851459,5.36,2745.6,2745.2,3.64271]
[1740078852759,5.36,2745.6,2745.2,3.6426]
[1740078852930,9.00219,2745.6,2745.2,3.6426]
[1740078853531,5.36,2745.6,2745.2,3.6426]
[1740078853760,5.36,2745.6,2745.2,4.50080394]
[1740078854960,5.36,2745.6,2745.2,8.14346394]
[1740078855158,5.36,2745.6,2745.3,3.64257]
[1740078855363,5.36,2745.6,2745.2,4.50085394]
[1740078855564,9.00207,2745.7,2745.2,8.14349394]
[1740078855735,9.00207,2745.7,2745.3,1.15646343]
[1740078856392,9.00207,2745.7,2745.3,4.79904343]
[1740078856673,9.00207,2745.7,2745.3,1.15646343]
[1740078856869,9.00207,2745.7,2745.3,4.79901343]
[1740078857253,9.00207,2745.7,2745.3,1.15646343]
[1740078858977,5.36,2745.7,2745.3,1.15646343]
[1740078859155,9.00208,2745.7,2745.3,3.64255]
[1740078859476,9.00208,2745.7,2745.1,7.06392038]
[1740078859681,9.00208,2745.7,2745.2,3.64271]
[1740078860464,9.00208,2745.7,2745.2,3.64272]
[1740078860656,9.00208,2745.7,2745.3,1.07066404]
[1740078863292,9.00208,2745.7,2745.2,3.64272]
[1740078863584,9.00206,2745.7,2745.1,7.06392038]
[1740078863778,3.64219,2745.6,2745.1,7.06391038]
[1740078864093,3.60358325,2745.6,2745.1,7.06391038]
[1740078864585,3.64227,2745.6,2745.1,7.06391038]
[1740078864757,3.64227,2745.6,2745.2,3.64271]
[1740078866289,9.00206,2745.7,2745.2,3.64265]
[1740078867197,3.64219,2745.6,2745.2,3.6427]
[1740078867687,9.00206,2745.7,2745.2,3.64263]
[1740078868290,12.6442,2745.7,2745.2,3.64263]
[1740078868493,3.6422,2745.6,2745.2,1.27523715]
[1740078868874,3.6422,2745.6,2745.2,4.91793715]
[1740078869687,3.6422,2745.6,2745.2,1.27523715]
[1740078870092,3.6422,2745.6,2745.2,4.91789715]
[1740078870462,3.6422,2745.6,2745.2,1.27523715]
[1740078870685,3.6422,2745.6,2745.2,0.55]
[1740078871592,3.64237,2745.5,2745.2,0.55]
[1740078871892,3.64219,2745.6,2745.2,0.55]
[1740078872523,3.64219,2745.6,2745.2,4.19268]
[1740078873403,9.00207,2745.7,2745.2,0.55]
[1740078873577,9.00207,2745.7,2745.2,4.19271]
[1740078873978,9.00207,2745.7,2745.2,7.83535]
[1740078874192,9.00207,2745.7,2745.2,4.19264]
[1740078874498,9.00207,2745.7,2745.3,3.64258]
[1740078874698,9.00207,2745.7,2745.3,5.30024101]
[1740078877407,9.00207,2745.7,2745.3,1.65766101]
[1740078877969,5.36,2745.7,2745.3,5.30022101]
[1740078879574,3.64205,2745.7,2745.3,1.65766101]
[1740078881503,3.64205,2745.7,2745.3,5.30022101]
[1740078881704,9.75834,2745.8,2745.3,5.30022101]
[1740078882174,9.75834,2745.8,2745.4,0.7769]
[1740078883100,3.64207,2745.7,2745.4,0.7769]
[1740078883901,9.75839,2745.8,2745.4,0.7769]
[1740078884503,3.64207,2745.7,2745.4,0.7769]
[1740078887301,6.1164,2745.8,2745.4,0.7769]
[1740078887536,9.75833,2745.8,2745.4,0.7769]
[1740078887808,3.64205,2745.7,2745.4,0.7769]
[1740078891414,9.75835,2745.8,2745.4,0.7769]
[1740078891586,5.36,2745.8,2745.7,1.65766101]
[1740078894095,5.36,2745.8,2745.5,5.29985101]
[1740078894277,5.36,2745.8,2745.5,1.65766101]
[1740078894778,9.00198,2745.8,2745.5,1.65766101]
[1740078895111,3.64216,2745.7,2745.4,0.7769]
[1740078895307,3.64216,2745.7,2745.3,1.65766101]
[1740078895612,3.64205,2745.7,2745.3,1.65766101]
[1740078895808,0.8313,2745.7,2745.3,1.65766101]
[1740078896009,3.64225,2745.6,2745.3,1.65766101]
[1740078896202,4.47336,2745.7,2745.3,1.65766101]
[1740078898835,4.47336,2745.7,2745.3,5.30024101]
[1740078899125,3.64219,2745.6,2745.3,1.65766101]
[1740078899303,4.47337,2745.7,2745.3,1.65766101]
[1740078899621,4.47337,2745.7,2745.3,5.30024101]
[1740078899825,4.47337,2745.7,2745.5,1.65766101]
[1740078900026,0.8313,2745.7,2745.5,1.65766101]
[1740078900394,0.1493626,2746.0,2745.7,3.64205]
[1740078900594,0.1493626,2746.0,2745.9,1.65766101]
[1740078901389,3.7910226,2746.0,2745.5,1.65766101]